bitfinex/quotes_ETHUSD_20251015
["timestamp","ask_amount","ask_price","bid_price","bid_amount"]
[1760524823927,11.87116762,4128.0,4127.9,0.002]
[1760524824126,12.91121162,4128.0,4127.9,0.002]
[1760524824332,10.60697062,4128.0,4127.9,0.002]
[1760524824703,10.79599462,4128.0,4127.9,0.002]
[1760524825034,12.88416762,4128.0,4127.9,0.002]
[1760524825206,14.99810662,4128.0,4127.9,0.002]
[1760524825406,15.50562762,4128.0,4127.9,0.002]
[1760524826132,12.93209862,4128.0,4127.9,0.002]
[1760524826430,24.27056662,4128.0,4127.9,0.002]
[1760524826803,22.09430262,4128.0,4127.9,0.002]
[1760524827034,10.29094362,4128.0,4127.9,0.002]
[1760524827417,14.31876562,4128.0,4127.9,0.002]
[1760524827943,14.31876562,4128.0,4127.0,0.002]
[1760524828111,42.67929283,4127.6,4127.0,0.002]
[1760524828432,37.70118083,4127.6,4127.0,0.002]
[1760524828638,37.94098083,4127.6,4127.0,0.002]
[1760524828809,35.05704183,4127.6,4127.0,0.002]
[1760524829402,39.62036683,4127.6,4127.0,0.002]
[1760524829614,38.04601583,4127.6,4127.0,0.002]
[1760524830225,38.38483583,4127.6,4127.0,0.002]
[1760524830441,26.68721083,4127.6,4127.0,0.002]
[1760524830605,13.37785237,4127.6,4127.0,0.002]
[1760524830800,12.368737,4127.6,4127.1,0.2193]
[1760524831014,11.22004637,4127.6,4127.0,0.002]
[1760524831420,7.08851537,4127.6,4127.0,0.002]
[1760524831626,13.52210137,4127.6,4127.0,0.002]
[1760524832529,16.15847937,4127.6,4127.0,0.002]
[1760524833141,16.79207937,4127.6,4127.0,0.002]
[1760524833337,9.24791337,4127.6,4127.1,0.2193]
[1760524833538,6.84891537,4127.6,4127.1,0.2193]
[1760524833740,13.52128137,4127.6,4127.0,0.002]
[1760524833942,8.64486137,4127.6,4127.0,0.002]
[1760524834237,9.65641137,4127.6,4127.0,0.002]
[1760524834639,10.80542537,4127.6,4127.0,0.002]
[1760524835335,6.428779,4127.6,4127.0,0.002]
[1760524835536,11.907573,4128.6,4127.5,0.4517]
[1760524835708,4.160484,4127.9,4127.5,0.4517]
[1760524835903,1.92,4127.7,4127.5,0.4517]
[1760524836208,2.507,4127.8,4127.5,0.4517]
[1760524836409,1.92,4127.7,4127.5,0.4517]
[1760524836620,1.92,4127.7,4127.6,0.4497]
[1760524836903,1.92,4127.7,4127.5,0.002]
[1760524837104,44.21662883,4127.6,4127.5,0.002]
[1760524837328,39.01972133,4127.6,4127.5,0.002]
[1760524837535,39.11692561,4127.6,4127.5,0.002]
[1760524838040,14.66232161,4127.6,4127.5,0.002]
[1760524838358,44.66232161,4127.6,4127.5,0.002]
[1760524839044,44.31383311,4127.6,4127.5,0.002]
[1760524839735,44.66232161,4127.6,4127.5,0.002]
[1760524840114,46.84632161,4127.6,4127.5,0.002]
[1760524841140,42.81496711,4127.6,4127.5,0.002]
[1760524842352,35.95953111,4127.6,4127.5,0.002]
[1760524842554,38.46653111,4127.6,4127.5,0.002]
[1760524842994,30.0,4127.5,4126.6,0.002]
[1760524843168,44.20025721,4126.7,4126.6,0.002]
[1760524843463,46.70725721,4126.7,4126.6,0.002]
[1760524843665,46.94635721,4126.7,4126.6,0.002]
[1760524844158,16.94635721,4126.7,4126.6,0.002]
[1760524844357,46.94635721,4126.7,4126.6,0.002]
[1760524845156,16.94635721,4126.7,4126.6,0.002]
[1760524845361,46.94635721,4126.7,4126.6,0.002]
[1760524846149,47.04359032,4126.7,4126.6,0.002]
[1760524846672,47.42374476,4126.7,4126.6,0.002]
[1760524847473,21.0018983,4126.7,4126.6,0.002]
[1760524847678,20.7591833,4126.7,4126.6,0.002]
[1760524847880,18.4900833,4126.7,4126.6,0.002]
[1760524848084,20.9980833,4126.7,4126.6,0.002]
[1760524848285,8.2011313,4126.7,4126.6,0.002]
[1760524848480,38.2011313,4126.7,4126.6,0.002]
[1760524848682,35.6931313,4126.7,4126.6,0.002]
[1760524848911,38.2011313,4126.7,4126.6,0.002]
[1760524849053,29.6385033,4126.7,4126.6,0.002]
[1760524849259,28.0106043,4126.7,4126.6,0.002]
[1760524849568,26.1967753,4126.7,4126.6,0.002]
[1760524849884,21.6451653,4126.7,4126.6,0.002]
[1760524850181,23.8291653,4126.7,4126.6,0.002]
[1760524850380,10.1462313,4126.7,4126.6,0.002]
[1760524850593,15.7840383,4126.7,4126.6,0.002]
[1760524850770,7.83637544,4126.7,4126.6,0.4573]
[1760524850951,14.68761919,4126.7,4126.6,0.4573]
[1760524851378,24.60061819,4126.7,4126.6,0.002]
[1760524851689,22.98241319,4126.7,4126.6,0.002]
[1760524851896,21.60745419,4126.7,4126.6,0.002]
[1760524852076,16.31015919,4126.7,4126.6,0.002]
[1760524852379,14.72695244,4126.7,4126.6,0.4573]
[1760524852582,9.15386444,4126.7,4126.6,0.4573]
[1760524852795,11.05871,4126.7,4126.6,0.4573]
[1760524853389,14.264962,4126.7,4126.6,0.4573]
[1760524854376,11.869242,4126.7,4126.6,0.4573]
[1760524854570,9.949242,4126.7,4126.6,0.4573]
[1760524854776,11.869242,4126.7,4126.6,0.4573]
[1760524855081,9.360442,4126.7,4126.6,0.4573]
[1760524855380,2.42353739,4126.2,4126.1,0.002]
[1760524855580,33.05713739,4126.2,4126.1,0.002]
[1760524855802,23.99589389,4126.2,4126.1,0.002]
[1760524855975,22.04534689,4126.2,4126.1,0.002]
[1760524856173,24.55834689,4126.2,4126.1,0.002]
[1760524856367,24.65032026,4126.2,4126.1,0.002]
[1760524856572,8.17249926,4126.2,4126.1,0.002]
[1760524856785,37.82401076,4126.2,4126.1,0.002]
[1760524858494,31.07838839,4126.2,4126.1,0.002]
[1760524858695,20.50936639,4126.2,4126.1,0.002]
[1760524859274,2.42406612,4125.3,4125.2,0.002]
[1760524859506,21.46356458,4125.3,4125.2,0.002]
[1760524859801,43.18739858,4125.3,4125.2,0.002]
[1760524860203,44.65966092,4125.3,4125.2,0.002]
[1760524860505,43.56766092,4125.3,4125.2,0.002]
[1760524860705,0.6336,4124.8,4123.8,0.002]
[1760524861006,43.97930855,4124.4,4123.8,0.002]
[1760524861172,13.47970609,4124.4,4123.8,0.002]
[1760524861368,13.72910609,4124.4,4123.8,0.002]
[1760524861583,14.10946495,4124.4,4123.8,0.002]
[1760524861788,29.27514795,4124.4,4123.8,0.002]
[1760524861977,9.20412909,4124.4,4123.8,0.002]
[1760524862196,6.779534,4124.4,4123.8,0.002]
[1760524862394,8.667934,4124.4,4124.1,0.2193]
[1760524862574,20.72724255,4124.4,4123.8,0.002]
[1760524862774,7.50019509,4124.4,4123.8,0.002]
[1760524862979,35.0756,4124.4,4123.8,0.002]
[1760524863180,37.50019509,4124.4,4123.8,0.002]
[1760524863390,34.442,4124.4,4124.1,0.2193]
[1760524863595,30.884305,4124.4,4124.3,0.4656]
[1760524864080,0.6336,4125.0,4124.3,0.4656]
[1760524864081,0.4744,4126.9,4124.3,0.4656]
[1760524864298,5.2526,4125.5,4124.4,0.02424595]
[1760524864497,0.361,4125.6,4124.4,2.42459509]
[1760524864817,0.361,4125.6,4124.5,0.02424536]
[1760524865011,0.361,4125.6,4125.5,2.42394861]
[1760524865509,0.4656,4126.7,4125.5,2.42394861]
[1760524865510,17.876693,4126.5,4125.5,0.1208]
[1760524865675,6.83765,4126.8,4124.4,2.42459509]
[1760524865876,29.612258,4126.2,4123.3,0.26586815]
[1760524866077,16.818373,4126.1,4124.0,2.42481382]
[1760524866378,4.34401422,4125.4,4124.0,2.42479553]
[1760524866585,8.778998,4125.5,4124.2,2.4247052]
[1760524866586,11.799998,4125.3,4124.2,2.4247052]
[1760524866889,9.972045,4125.2,4123.5,1.92]
[1760524867093,9.972045,4125.2,4124.0,2.42481225]
[1760524867307,5.68379,4125.2,4124.4,2.42458863]
[1760524867480,2.5536,4125.1,4124.1,0.2193]
[1760524867676,9.954688,4124.8,4124.1,0.2193]
[1760524867881,8.653546,4124.6,4124.1,0.2193]
[1760524868116,8.001546,4124.6,4124.1,2.64402228]
[1760524868500,5.057533,4124.6,4124.2,2.42471066]
[1760524868827,2.604,4124.7,4124.5,2.42450806]
[1760524869004,2.604,4124.7,4124.4,2.42459509]
[1760524869209,2.604,4124.7,4124.3,0.26660107]
[1760524869398,2.604,4124.7,4124.6,2.42447752]
[1760524870086,3.696,4124.7,4124.6,2.42447752]
[1760524870318,4.1249,4124.7,4124.3,0.002]
[1760524870613,11.233147,4124.4,4124.3,0.002]
[1760524870812,11.898147,4124.5,4124.3,0.002]
[1760524871011,11.898147,4124.4,4124.3,0.002]
[1760524871435,0.4289,4124.4,4124.3,0.002]
[1760524871620,10.172385,4124.4,4124.3,0.002]
[1760524871814,5.82043,4124.4,4124.3,0.002]
[1760524872022,2.604,4124.7,4124.3,0.002]
[1760524872023,12.911916,4124.6,4124.3,0.002]
[1760524872206,3.041259,4124.6,4124.3,0.002]
[1760524872587,8.426172,4124.5,4124.3,0.002]
[1760524873210,0.4289,4124.4,4124.3,0.002]
[1760524873526,14.329214,4124.5,4124.3,0.002]
[1760524873706,14.154264,4124.4,4124.3,0.002]
[1760524873886,16.79645909,4124.4,4124.3,0.002]
[1760524874086,14.07668909,4124.4,4124.3,0.002]
[1760524874521,15.41099109,4124.4,4124.3,0.002]
[1760524874814,15.12129409,4124.4,4124.3,0.002]
[1760524874987,4.23767,4124.5,4124.3,0.002]
[1760524875618,8.23767,4124.5,4124.3,0.002]
[1760524876609,5.91567,4124.5,4124.3,0.002]
[1760524876810,2.3489,4125.6,4124.3,0.002]
[1760524877011,0.1208,4124.8,4124.3,0.002]
[1760524877210,2.320446,4125.8,4124.3,0.002]
[1760524877518,0.1208,4125.2,4124.7,2.42441511]
[1760524877730,2.004,4125.1,4125.0,2.42419042]
[1760524878132,2.004,4125.1,4124.6,0.1208]
[1760524878331,2.004,4125.1,4125.0,2.42424242]
[1760524878486,0.12,4125.2,4124.6,0.1208]
[1760524878694,0.12,4125.2,4124.8,2.4243489]
[1760524878893,0.12,4125.2,4124.6,0.1208]
[1760524879513,0.12,4125.2,4124.9,2.42428884]
[1760524879831,2.613,4125.1,4124.9,2.42428884]
[1760524880135,1.092,4125.0,4124.9,2.42428884]
[1760524881091,1.092,4125.0,4124.8,0.1208]
[1760524881287,0.1208,4124.8,4124.3,0.002]
[1760524881512,0.1208,4124.5,4124.3,0.002]
[1760524881725,2.609,4124.4,4124.3,2.42662532]
[1760524881927,2.609,4124.4,4124.3,0.002]
[1760524882126,2.609,4124.4,4124.3,2.42665388]
[1760524882295,2.609,4124.4,4124.3,2.92387597]
[1760524882490,1.093,4125.2,4125.1,2.42418365]
[1760524882700,4.795,4125.2,4124.9,2.42428395]
[1760524883036,4.795,4125.2,4125.1,2.42418365]
[1760524885698,4.791,4125.2,4125.1,2.42418365]
[1760524885895,4.791,4125.2,4125.1,2.92111032]
[1760524891252,4.791,4125.2,4125.1,2.42418365]
[1760524895515,4.791,4125.2,4124.3,2.92386455]
[1760524895516,4.396378,4125.1,4124.3,0.49922209]
[1760524895749,6.82057661,4125.1,4124.3,0.002]
[1760524895949,2.85316573,4125.0,4124.3,0.002]
[1760524896153,9.03113,4124.9,4124.3,0.002]
[1760524896445,0.4289,4125.0,4124.3,0.002]
[1760524896446,2.598,4124.8,4124.3,0.002]
[1760524896650,6.304034,4124.4,4124.3,0.002]
[1760524896831,5.162497,4124.4,4124.3,0.002]
[1760524897006,5.591397,4124.4,4124.3,0.002]
[1760524897338,9.93599209,4124.4,4124.3,0.002]
[1760524897542,19.64948409,4124.4,4124.3,0.002]
[1760524897770,19.41411109,4124.4,4124.3,0.002]
[1760524898668,18.64474,4124.4,4124.3,0.002]
[1760524898868,7.94281,4124.4,4124.3,0.002]
[1760524899070,10.36740509,4124.4,4124.3,0.002]
[1760524899237,3.42481,4124.4,4124.3,0.002]
[1760524899442,6.01981,4124.4,4124.3,0.002]
[1760524899856,8.684693,4124.4,4124.3,0.002]
[1760524900169,10.868693,4124.4,4124.3,0.002]
[1760524900673,6.861445,4124.4,4124.3,0.002]
[1760524900855,15.54791309,4124.4,4124.3,0.002]
[1760524901058,12.569549,4124.4,4124.3,0.002]
[1760524901239,7.183243,4124.4,4124.3,0.002]
[1760524901574,2.593,4124.4,4124.3,0.002]
[1760524901871,2.592,4124.4,4124.3,0.002]
[1760524902169,2.352,4124.6,4124.3,0.002]
[1760524902370,0.1208,4124.4,4124.3,0.002]
[1760524902748,0.001,4125.2,4124.3,0.002]
[1760524902961,0.1208,4124.7,4124.3,0.002]
[1760524903155,2.59,4124.6,4124.3,0.002]
[1760524903372,2.59,4124.6,4124.3,2.42663953]
[1760524903578,2.59,4124.6,4124.3,0.002]
[1760524903752,0.001,4125.2,4124.7,2.42437826]
[1760524903957,2.59,4125.1,4124.5,2.5453308]
[1760524904279,2.59,4125.0,4124.5,0.1208]
[1760524904447,2.59,4125.0,4124.9,2.42430119]
[1760524904976,2.59,4125.0,4124.3,0.002]
[1760524905148,2.59,4125.0,4124.6,2.4244614]
[1760524905344,4.475484,4124.9,4124.3,0.002]
[1760524905545,4.951359,4124.6,4124.3,0.002]
[1760524905777,2.588,4124.5,4124.3,0.002]
[1760524906078,3.0551,4124.5,4124.3,0.002]
[1760524906374,2.588,4124.5,4124.3,0.002]
[1760524906581,3.0551,4124.5,4124.3,0.002]
[1760524906760,0.4671,4124.4,4124.3,0.002]
[1760524907494,7.899467,4124.4,4124.3,0.002]
[1760524907773,5.802967,4124.4,4124.3,0.002]
[1760524908180,2.5841,4124.4,4124.3,0.002]
[1760524908475,2.588,4124.5,4124.3,0.002]
[1760524909544,1.92,4125.1,4124.3,0.002]
[1760524909545,2.583,4124.4,4124.3,0.002]
[1760524909978,0.001,4125.2,4124.3,0.002]
[1760524910177,1.92,4125.0,4124.3,0.002]
[1760524910480,1.92,4124.8,4124.3,0.002]
[1760524910650,2.583,4124.7,4124.3,0.002]
[1760524911471,1.92,4125.0,4124.4,2.42455317]
[1760524911752,1.92,4125.0,4124.3,0.002]
[1760524911753,3.673,4124.9,4124.3,0.002]
[1760524912160,3.673,4124.9,4124.5,2.42449711]
[1760524912581,3.673,4124.9,4124.3,2.4266039]
[1760524912788,3.673,4124.9,4124.4,2.42459282]
[1760524913193,9.45570941,4124.5,4124.0,0.002]
[1760524913493,11.17725246,4124.1,4124.0,0.002]
[1760524913681,12.57864546,4124.1,4124.0,0.002]
[1760524913877,13.04094546,4124.1,4124.0,0.002]
[1760524914191,10.39428246,4124.1,4124.0,0.002]
[1760524914492,15.99456646,4124.1,4124.0,0.002]
[1760524914793,15.19505646,4124.1,4124.0,0.002]
[1760524915164,7.347404,4124.1,4124.0,0.002]
[1760524915497,10.326119,4124.1,4124.0,0.002]
[1760524915683,1.92,4124.6,4124.0,0.1228]
[1760524915892,2.595,4124.5,4124.0,0.1228]
[1760524916088,3.685,4124.4,4124.0,2.54760657]
[1760524916407,3.685,4124.4,4124.3,0.002]
[1760524917400,3.685,4124.4,4124.3,2.54745388]
[1760524917565,3.685,4124.4,4124.3,0.1228]
[1760524917875,3.685,4124.4,4124.3,2.54745388]
[1760524919476,3.685,4124.4,4124.3,0.002]
[1760524920001,4.1473,4124.4,4124.3,0.002]
[1760524920215,3.685,4124.4,4124.3,0.002]
[1760524920867,1.092,4124.5,4124.3,0.002]
[1760524921062,3.68,4124.4,4124.3,0.002]
[1760524921468,4.1423,4124.4,4124.3,0.002]
[1760524921962,8.960926,4124.4,4124.3,0.002]
[1760524922188,11.38552109,4124.4,4124.3,0.002]
[1760524922963,5.47489509,4124.4,4124.3,0.002]
[1760524923167,3.0503,4124.4,4124.3,0.002]
[1760524923698,2.588,4124.4,4124.3,0.002]
[1760524924398,2.584,4124.4,4124.3,0.002]
[1760524925707,0.0002,4124.9,4124.3,0.002]
[1760524926008,0.0002,4124.9,4124.3,0.48735196]
[1760524926177,0.0002,4124.9,4124.3,2.91199062]
[1760524926383,0.0002,4124.9,4124.4,2.42459509]
[1760524926570,0.0002,4124.9,4124.6,2.42443465]
[1760524926766,0.0002,4124.9,4124.7,2.42441874]
[1760524926767,2.58,4124.8,4124.7,2.42441874]
[1760524926974,0.0002,4124.9,4124.8,2.42435996]
[1760524927284,2.5802,4124.9,4124.8,2.42435996]
[1760524927476,2.5802,4124.9,4124.8,2.42745996]
[1760524927793,0.0002,4124.9,4124.8,2.42745996]
[1760524927996,0.4292,4124.9,4124.8,2.42745996]
[1760524928168,0.4292,4124.9,4124.8,2.96116827]
[1760524929420,0.4292,4124.9,4124.8,3.08196827]
[1760524930176,1.5212,4124.9,4124.8,3.08196827]
[1760524930916,0.001,4125.4,4124.9,0.6336]
[1760524931117,0.001,4125.4,4125.1,4.97778365]
[1760524931304,2.097,4125.2,4125.1,4.97778365]
[1760524931624,2.097,4125.2,4125.1,4.34418365]
[1760524931821,2.097,4125.2,4125.1,4.98088365]
[1760524932293,0.001,4125.4,4125.2,4.97772489]
[1760524932502,0.001,4125.4,4125.3,6.10953272]
[1760524932698,0.001,4125.7,4125.6,3.05748985]
[1760524933207,0.001,4125.7,4125.6,3.06058985]
[1760524933394,0.001,4125.7,4125.6,4.98058985]
[1760524933599,0.602,4125.7,4125.6,4.98058985]
[1760524933800,0.602,4125.7,4125.6,6.7953703]
[1760524934709,0.4371,4127.3,4126.0,3.05725487]
[1760524934908,0.4371,4127.3,4126.0,3.08149141]
[1760524935111,0.4371,4127.3,4126.0,3.08459141]
[1760524935277,0.001,4127.5,4126.0,3.08459141]
[1760524935902,0.001,4127.5,4126.0,5.00459141]
[1760524936102,0.001,4127.5,4126.9,2.42312631]
[1760524937799,2.574,4127.0,4126.9,2.42312631]
[1760524939421,2.57,4127.0,4126.9,2.42622631]
[1760524939985,2.57,4127.0,4126.9,2.42312631]
[1760524940191,3.662,4127.0,4126.9,2.42312631]
[1760524940432,3.662,4127.0,4126.9,2.9101827]
[1760524940922,3.662,4127.0,4126.9,3.0309827]
[1760524943228,0.001,4127.0,4126.9,3.0309827]
[1760524943413,3.658,4127.0,4126.9,3.05521396]
[1760524943608,3.658,4127.0,4126.9,3.0309827]
[1760524944796,3.658,4127.0,4126.9,4.9509827]
[1760524944996,3.658,4127.0,4126.9,5.5876827]
[1760524947392,3.658,4127.0,4126.9,5.5845827]
[1760524947799,0.001,4127.5,4127.4,2.42283277]
[1760524948009,1.093,4127.5,4127.4,4.9482068]
[1760524948442,1.093,4127.5,4127.4,5.5818068]
[1760524948608,1.093,4127.5,4127.4,5.4610068]
[1760524948938,1.0922,4127.5,4127.4,5.5818068]
[1760524949107,3.6042,4127.5,4127.4,5.5818068]
[1760524950143,3.6502,4127.5,4127.4,5.5818068]
[1760524950603,3.6502,4127.5,4127.4,4.9482068]
[1760524951031,4.0873,4127.5,4127.4,4.9482068]
[1760524957415,4.0873,4127.5,4127.4,0.1208]
[1760524957613,4.0873,4127.5,4127.4,2.54363277]
[1760524959628,1.5293,4127.5,4127.4,2.54363277]
[1760524959825,4.0753,4127.5,4127.4,2.54363277]
[1760524961034,0.0002,4127.5,4127.4,2.54363277]
[1760524961236,3.3192,4127.5,4127.4,3.04029096]
[1760524962613,3.7724,4127.5,4127.4,3.04029096]
[1760524962860,3.7724,4127.5,4127.4,2.54363277]
[1760524968385,3.7724,4127.5,4127.0,2.42304608]
[1760524968549,3.7724,4127.5,4127.1,2.4230035]
[1760524968550,0.4532,4127.4,4127.1,2.4230035]
[1760524968737,0.4532,4127.3,4127.1,2.4230035]
[1760524968938,0.2165,4127.2,4127.0,2.54385316]
[1760524969158,2.9912,4127.1,4127.0,2.54385316]
[1760524969672,2.538,4127.1,4127.0,2.54385316]
[1760524969985,2.538,4127.1,4127.0,3.04055374]
[1760524972171,0.0002,4127.5,4127.4,2.42283277]
[1760524972346,3.6282,4127.5,4127.4,2.42283277]
[1760524972546,0.0004,4127.6,4127.5,2.42277407]
[1760524972745,1.0924,4127.6,4127.5,2.42277407]
[1760524973585,1.0924,4127.6,4127.5,2.91941475]
[1760524973787,3.6264,4127.6,4127.5,2.91941475]
[1760524973987,1.0924,4127.6,4127.5,3.04331475]
[1760524974190,3.6254,4127.6,4127.5,3.04331475]
[1760524975087,3.6254,4127.6,4127.5,3.04021475]
[1760524976886,4.0862,4127.6,4127.5,2.54357407]
[1760524978253,3.6254,4127.6,4127.5,2.54357407]
[1760524982099,3.6194,4127.6,4127.5,2.54357407]
[1760524987903,3.6194,4127.6,4127.5,0.1208]
[1760524988113,4.0802,4127.6,4127.5,2.42277407]
[1760524989391,4.0802,4127.6,4127.5,2.90733635]
[1760524989586,0.0004,4127.6,4127.5,2.90733635]
[1760524989786,3.6194,4127.6,4127.5,2.90733635]
[1760524991501,3.6194,4127.6,4127.5,2.90933635]
[1760524995985,0.0006,4127.9,4127.8,2.42259799]
[1760524996206,1.0916,4127.9,4127.8,3.1980586]
[1760524997220,3.6186,4127.9,4127.8,3.1980586]
[1760524997988,3.6186,4127.9,4127.8,3.3188586]
[1760524999410,3.6186,4127.9,4127.8,6.28007418]
[1760525006125,0.001,4128.4,4127.8,6.28007418]
[1760525006126,0.001,4129.1,4129.0,4.97549392]
[1760525006426,2.928,4129.1,4129.0,7.9367095]
[1760525006827,0.001,4129.6,4129.5,2.42160067]
[1760525007124,0.001,4129.6,4129.5,5.38281625]
[1760525007299,0.001,4129.6,4129.5,6.1632656]
[1760525008024,1.975,4129.6,4129.5,6.1632656]
[1760525008331,0.001,4130.0,4129.9,2.42136613]
[1760525009838,1.783,4130.0,4129.9,2.42136613]
[1760525010200,2.874,4130.0,4129.9,2.42136613]
[1760525010419,2.874,4130.0,4129.9,3.20176863]
[1760525010625,3.3374,4130.0,4129.9,3.20176863]
[1760525010823,3.3374,4130.0,4129.9,2.42136613]
[1760525013657,3.618,4130.0,4129.9,2.42136613]
[1760525013855,4.0814,4130.0,4129.9,2.42136613]
[1760525015836,3.618,4130.0,4129.9,2.42136613]
[1760525016017,3.618,4130.0,4129.9,2.54216613]
[1760525016603,4.0814,4130.0,4129.9,2.54216613]
[1760525017532,0.001,4130.0,4129.9,3.33464863]
[1760525017737,3.617,4130.0,4129.9,3.33464863]
[1760525018653,4.0804,4130.0,4129.9,2.42136613]
[1760525019649,4.0796,4130.0,4129.9,2.42136613]
[1760525020754,3.6162,4130.0,4129.9,2.42136613]
[1760525028138,3.6162,4130.0,4129.9,3.05496613]
[1760525028438,0.2174,4130.7,4130.6,2.42095579]
[1760525028638,1.3084,4130.7,4130.6,2.42095579]
[1760525028840,1.3084,4130.7,4130.6,2.54175579]
[1760525029443,3.8324,4130.7,4130.6,2.54175579]
[1760525029650,4.2916,4130.7,4130.6,2.54175579]
[1760525030950,3.615,4130.7,4130.6,2.54175579]
[1760525032281,4.0742,4130.7,4130.6,3.21335585]
[1760525032774,4.0742,4130.7,4130.6,2.42095579]
[1760525034264,3.615,4130.7,4130.6,2.42095579]
[1760525035066,0.001,4130.9,4130.8,3.05443857]
[1760525035268,0.001,4130.9,4130.8,6.01565415]
[1760525035269,1.092,4130.9,4130.8,6.01565415]
[1760525035470,0.32847813,4131.2,4130.9,0.6336]
[1760525035668,0.32847813,4131.2,4131.1,6.01547835]
[1760525036169,2.85147813,4131.2,4131.1,6.01547835]
[1760525037853,2.85147813,4131.2,4131.1,7.93547835]
[1760525038580,0.6565,4132.0,4131.9,2.42019409]
[1760525039854,3.1785,4132.0,4131.9,2.42019409]
[1760525040267,4.2695,4132.0,4131.9,2.42019409]
[1760525041577,4.2695,4132.0,4130.6,2.96121558]
[1760525041777,0.4391,4131.9,4130.7,1.92]
[1760525042084,0.4391,4131.8,4131.2,2.42059362]
[1760525042259,0.233,4130.8,4130.7,4.34089718]
[1760525042464,3.1941,4130.8,4130.7,2.42089718]
[1760525042646,3.1941,4130.8,4130.7,2.54169718]
[1760525043183,3.1933,4130.8,4130.7,0.1208]
[1760525043677,3.1933,4130.8,4130.6,2.42095364]
[1760525043851,0.4391,4130.7,4130.6,2.42095364]
[1760525047784,0.4401,4130.7,4130.6,2.42095364]
[1760525049370,0.001,4130.7,4130.6,2.42095364]
[1760525049591,3.613,4130.7,4130.6,2.42095364]
[1760525049793,4.0521,4130.7,4130.5,0.1208]
[1760525049962,3.613,4130.7,4130.6,2.42095579]
[1760525050697,4.0471,4130.7,4130.6,2.42095579]
[1760525051299,4.0471,4130.7,4130.6,2.91722773]
[1760525051300,3.613,4130.7,4130.6,2.91722773]
[1760525051466,0.001,4130.7,4130.6,3.03802773]
[1760525051671,3.5,4130.7,4130.6,3.03802773]
[1760525055198,3.612,4130.7,4130.6,3.03802773]
[1760525058671,4.0461,4130.7,4130.6,2.42095579]
[1760525059613,4.0461,4130.7,4130.0,0.002]
[1760525060103,4.0461,4130.7,4130.6,2.42095579]
[1760525060902,4.0461,4130.7,4130.5,2.42101432]
[1760525061095,3.612,4130.7,4130.5,2.42101432]
[1760525061295,0.4341,4130.6,4130.5,2.42101432]
[1760525062783,3.612,4130.7,4130.6,2.42095579]
[1760525062988,4.0461,4130.7,4130.6,2.42095579]
[1760525064480,3.612,4130.7,4130.6,2.42095579]
[1760525064681,4.0461,4130.7,4130.6,2.42095579]
[1760525064886,3.612,4130.7,4130.6,2.42095579]
[1760525066296,3.612,4130.7,4130.6,2.42295579]
[1760525066491,3.6112,4130.7,4130.6,2.42295579]
[1760525066727,0.0002,4130.7,4130.6,2.42295579]
[1760525066901,1.0912,4130.7,4130.6,2.9073528]
[1760525067078,3.6102,4130.7,4130.6,2.9073528]
[1760525068406,0.0002,4130.7,4130.6,2.9073528]
[1760525068708,3.6102,4130.7,4130.6,3.0281528]
[1760525068906,0.001,4130.8,4130.7,2.42089718]
[1760525069106,0.001,4131.6,4131.5,2.42042841]
[1760525070102,3.611,4131.6,4131.5,2.42042841]
[1760525070910,4.0451,4131.6,4131.5,2.42042841]
[1760525074382,4.0451,4131.6,4131.3,2.4205042]
[1760525074383,4.0451,4131.6,4131.3,2.42050612]
[1760525074586,0.4341,4131.5,4130.6,0.002]
[1760525074894,0.2229,4130.7,4130.6,0.002]
[1760525075079,2.7409,4130.7,4130.6,0.002]
[1760525075280,3.175,4130.7,4130.6,0.002]
[1760525075509,2.7409,4130.7,4130.6,2.42295579]
[1760525075708,3.175,4130.7,4130.6,2.42295579]
[1760525078829,0.2229,4131.2,4130.6,2.42295579]
[1760525079014,4.0421,4131.1,4130.8,2.42083857]
[1760525079216,3.608,4131.1,4130.9,2.42077465]
[1760525079415,3.608,4131.1,4130.6,2.42294897]
[1760525079416,0.4341,4131.0,4130.6,0.002]
[1760525079617,0.1208,4130.8,4130.6,0.002]
[1760525079804,2.517,4130.7,4130.6,0.002]
[1760525080000,2.9859,4130.7,4130.6,0.002]
[1760525081714,2.9859,4130.7,4130.6,2.42295579]
[1760525082113,2.9859,4130.7,4130.6,0.002]
[1760525083118,2.9859,4130.7,4130.6,2.42295579]
[1760525084034,2.9859,4130.7,4130.6,0.002]
[1760525084326,2.9859,4130.7,4130.6,2.42295579]
[1760525084504,2.9859,4130.7,4130.6,0.002]
[1760525084702,2.517,4130.7,4130.6,2.42295579]
[1760525085334,2.9859,4130.7,4130.6,2.42295579]
[1760525087444,0.001,4130.8,4130.7,2.42089718]
[1760525087645,2.637,4130.8,4130.7,4.34479718]
[1760525088935,1.091,4131.0,4130.9,2.42077997]
[1760525089136,2.182,4131.0,4130.9,2.44498776]
[1760525089339,2.182,4131.0,4130.9,2.42467997]
[1760525089537,2.182,4131.0,4130.9,3.5280923]
[1760525090047,0.001,4131.6,4131.2,2.42060418]
[1760525090247,3.6072,4131.3,4131.2,6.19066957]
[1760525091552,3.6072,4131.3,4131.2,6.19456957]
[1760525091859,0.001,4131.6,4131.5,2.42042841]
[1760525092055,3.607,4131.6,4131.5,3.52397872]
[1760525092620,3.607,4131.6,4131.5,3.52787872]